fUST/lending_fUST_20250630
["ID","MTS","AMOUNT","RATE_DAILY","PERIOD"]
[368678255,1751292650763,-507.75,0.00019333,2]
[368678256,1751292650773,-151.0,0.00019333,2]
[368678257,1751292650782,-2247.91,0.00019333,2]
[368678258,1751292650791,-151.0,0.00019333,2]
[368678259,1751292650801,-460.0,0.00019333,2]
[368678260,1751292650811,-1889.22,0.00019333,2]
[368678261,1751292650820,-151.0,0.00019333,2]
[368678262,1751292650829,-151.0,0.00019333,2]
[368678263,1751292650839,-460.0,0.00019333,2]
[368678264,1751292650848,-460.0,0.00019333,2]
[368678265,1751292650857,-151.0,0.00019333,2]
[368678266,1751292650866,-151.0,0.00019333,2]
[368678267,1751292650875,-151.0,0.00019333,2]
[368678268,1751292650885,-151.0,0.00019333,2]
[368678269,1751292650894,-460.0,0.00019333,2]
[368678270,1751292650904,-239.64445,0.00019334,2]
[368678271,1751292650913,-460.0,0.00019334,2]
[368678272,1751292650922,-460.0,0.00019334,2]
[368678273,1751292650931,-151.0,0.00019334,2]
[368678274,1751292650940,-2144.16,0.00019334,2]
[368678275,1751292650950,-151.0,0.00019334,2]
[368678276,1751292650959,-151.0,0.00019334,2]
[368678277,1751292650968,-560.83,0.00019334,2]
[368678278,1751292650977,-151.0,0.00019334,2]
[368678279,1751292650986,-460.0,0.00019334,2]
[368678280,1751292650995,-151.0,0.00019334,2]
[368678281,1751292651005,-494.44,0.00019334,2]
[368678282,1751292651014,-151.0,0.00019334,2]
[368678283,1751292651023,-151.0,0.00019334,2]
[368678284,1751292651032,-151.0,0.00019334,2]
[368678285,1751292651041,-460.0,0.00019334,2]
[368678286,1751292651051,-258.559854,0.00019334,2]
[368678287,1751292651060,-460.0,0.00019334,2]
[368678288,1751292651070,-508.1,0.00019334,2]
[368678289,1751292651079,-460.0,0.00019334,2]
[368678290,1751292651088,-460.0,0.00019334,2]
[368678291,1751292651098,-684.32,0.00019334,2]
[368678292,1751292651107,-460.0,0.00019334,2]
[368678293,1751292651116,-213.693847,0.00019334,2]
[368678294,1751292651125,-213.693847,0.00019334,2]
[368678295,1751292651135,-460.0,0.00019334,2]
[368678296,1751292651144,-151.0,0.00019334,2]
[368678297,1751292651154,-460.0,0.00019334,2]
[368678298,1751292651164,-610.8,0.00019334,2]
[368678299,1751292651173,-512.53,0.00019334,2]
[368678300,1751292651183,-460.0,0.00019334,2]
[368678301,1751292651193,-1233.39,0.00019334,2]
[368678302,1751292651202,-460.0,0.00019334,2]
[368678303,1751292651212,-478.91,0.00019334,2]
[368678304,1751292651222,-460.0,0.00019334,2]
[368678305,1751292651231,-460.0,0.00019334,2]
[368678306,1751292651330,-4803.33,0.00019334,2]
[368678307,1751292651340,-460.0,0.00019334,2]
[368678308,1751292651349,-460.0,0.00019334,2]
[368678309,1751292651359,-460.0,0.00019335,2]
[368678310,1751292651369,-151.0,0.00019335,2]
[368678311,1751292651378,-460.0,0.00019335,2]
[368678312,1751292651388,-1099.82,0.00019335,2]
[368678313,1751292651398,-460.0,0.00019335,2]
[368678314,1751292651407,-460.0,0.00019335,2]
[368678315,1751292651417,-460.0,0.00019335,2]
[368678316,1751292651429,-152.302486,0.00019335,2]
[368678317,1751292651439,-624.33,0.00019335,2]
[368678318,1751292651448,-151.942088,0.00019335,2]
[368678319,1751292651458,-460.0,0.00019335,2]
[368678320,1751292651468,-151.0,0.00019335,2]
[368678321,1751292651478,-225.494757,0.00019335,2]
[368678322,1751292651487,-460.0,0.00019335,2]
[368678323,1751292651497,-151.000002,0.00019335,2]
[368678324,1751292651507,-470.3,0.00019335,2]
[368678325,1751292651517,-4816.37,0.00019335,2]
[368678326,1751292651526,-1260.89,0.00019335,2]
[368678327,1751292651535,-485.39,0.00019335,2]
[368678328,1751292651545,-460.0,0.00019335,2]
[368678329,1751292651554,-798.02510962,0.00019338,2]
[368678330,1751292651563,-923.59811243,0.0001934,2]
[368678331,1751292651573,-957.77124259,0.00019395,2]
[368678332,1751292651582,-265.0,0.00019399,2]
[368678333,1751292651592,-460.0,0.00019434,2]
[368678334,1751292651603,-460.0,0.00019434,2]
[368678335,1751292651613,-460.0,0.00019434,2]
[368678336,1751292651622,-460.0,0.00019434,2]
[368678337,1751292651632,-460.0,0.00019434,2]
[368678338,1751292651642,-460.0,0.00019434,2]
[368678339,1751292651652,-460.0,0.00019434,2]
[368678340,1751292651661,-460.0,0.00019434,2]
[368678341,1751292651671,-460.0,0.00019434,2]
[368678342,1751292651681,-508.48,0.00019434,2]
[368678343,1751292651691,-212.22395648,0.00019434,2]
[368678344,1751292651701,-460.0,0.00019434,2]
[368678345,1751292651711,-460.0,0.00019434,2]
[368678346,1751292651720,-574.1,0.00019434,2]
[368678347,1751292651730,-460.0,0.00019434,2]
[368678348,1751292651739,-460.0,0.00019434,2]
[368678349,1751292651748,-460.0,0.00019434,2]
[368678350,1751292651758,-460.0,0.00019434,2]
[368678351,1751292651767,-774.04,0.00019434,2]
[368678352,1751292651777,-527.72,0.00019434,2]
[368678353,1751292651787,-460.0,0.00019434,2]
[368678354,1751292651796,-460.0,0.00019434,2]
[368678355,1751292651806,-527.38,0.00019434,2]
[368678356,1751292651818,-460.0,0.00019434,2]
[368678357,1751292651827,-460.0,0.00019434,2]
[368678358,1751292651837,-460.0,0.00019434,2]
[368678359,1751292651846,-5000.0,0.00019448,2]
[368678360,1751292651856,-25000.0,0.00019448,2]
[368678361,1751292651865,-151.0,0.00019448,2]
[368678362,1751292651874,-151.0,0.00019448,2]
[368678363,1751292651883,-151.0,0.00019448,2]
[368678364,1751292651893,-151.0,0.00019448,2]
[368678365,1751292651902,-151.0,0.00019448,2]
[368678366,1751292651911,-151.0,0.00019448,2]
[368678367,1751292651921,-151.0,0.00019448,2]
[368678368,1751292651930,-993.20877856,0.0001945,2]
[368678369,1751292651939,-242.24216907,0.00019469,2]
[368678370,1751292651949,-1029.95750337,0.00019505,2]
[368678371,1751292651958,-466.18,0.00019507,2]
[368678372,1751292651969,-518.96,0.00019507,2]
[368678373,1751292651979,-518.96,0.00019507,2]
[368678374,1751292651988,-518.96,0.00019507,2]
[368678375,1751292651998,-518.96,0.00019507,2]
[368678376,1751292652007,-519.19506502,0.00019507,2]
[368678377,1751292652017,-265.0,0.00019533,2]
[368678378,1751292652027,-460.0,0.00019534,2]
[368678379,1751292652037,-460.0,0.00019534,2]
[368678380,1751292652047,-460.0,0.00019534,2]
[368678381,1751292652057,-460.0,0.00019534,2]
[368678382,1751292652067,-1125.71,0.00019534,2]
[368678383,1751292652079,-460.0,0.00019534,2]
[368678384,1751292652088,-819.49,0.00019534,2]
[368678385,1751292652097,-711.35,0.00019534,2]
[368678386,1751292652107,-460.0,0.00019534,2]
[368678387,1751292652116,-1987.96,0.00019534,2]
[368678388,1751292652125,-460.0,0.00019534,2]
[368678389,1751292652135,-460.0,0.00019534,2]
[368678390,1751292652144,-850.8132279,0.00019534,2]
[368678391,1751292652154,-177.5677436,0.00019534,2]
[368678392,1751292652163,-307.6867203,0.00019534,2]
[368678393,1751292652173,-460.0,0.00019535,2]
[368678394,1751292652182,-829.15,0.00019535,2]
[368678395,1751292652191,-460.0,0.00019535,2]
[368678396,1751292652200,-460.0,0.00019535,2]
[368678397,1751292652209,-460.0,0.00019535,2]
[368678398,1751292652219,-460.0,0.00019535,2]
[368678399,1751292652228,-500.0,0.00019535,2]
[368678400,1751292652237,-460.0,0.00019535,2]
[368678401,1751292652247,-460.0,0.00019535,2]
[368678402,1751292652256,-460.0,0.00019535,2]
[368678403,1751292652265,-460.0,0.00019535,2]
[368678404,1751292652275,-460.0,0.00019535,2]
[368678405,1751292652284,-460.0,0.00019535,2]
[368678406,1751292652294,-460.0,0.00019535,2]
[368678407,1751292652304,-265.0,0.00019552,2]
[368678408,1751292652314,-1068.065931,0.0001956,2]
[368678409,1751292652323,-460.0,0.00019579,2]
[368678410,1751292652333,-460.0,0.00019579,2]
[368678411,1751292652342,-1190.0,0.00019581,2]
[368678412,1751292652352,-1000.0,0.00019585,2]
[368678413,1751292652361,-5888.0,0.00019589,2]
[368678414,1751292652370,-1000.0,0.00019593,2]
[368678415,1751292652379,-1000.0,0.00019595,2]
[368678416,1751292652389,-268.56743899,0.00019599,2]
[368678417,1751292652399,-1000.0,0.00019599,2]
[368678418,1751292652408,-151.0,0.000196,2]
[368678419,1751292652418,-320.61078831,0.00019606,2]
[368678420,1751292652432,-460.0,0.00019607,2]
[368678421,1751292652441,-460.0,0.00019607,2]
[368678422,1751292652451,-460.0,0.00019607,2]
[368678423,1751292652460,-460.0,0.00019607,2]
[368678424,1751292652470,-460.0,0.00019607,2]
[368678425,1751292652479,-3148.61,0.00019607,2]
[368678426,1751292652488,-460.0,0.00019607,2]
[368678427,1751292652497,-460.0,0.00019607,2]
[368678428,1751292652509,-833.89,0.00019607,2]
[368678429,1751292652518,-460.0,0.00019607,2]
[368678430,1751292652528,-3121.8,0.00019607,2]
[368678431,1751292652540,-460.0,0.00019607,2]
[368678432,1751292652550,-3574.5,0.00019607,2]
[368678433,1751292652559,-735.98,0.00019607,2]
[368678434,1751292652568,-489.67,0.00019607,2]
[368678435,1751292652578,-499.26,0.00019607,2]
[368678436,1751292652587,-460.0,0.00019607,2]
[368678437,1751292652596,-598.27870759,0.00019607,2]
[368678438,1751292652608,-3308.14,0.00019607,2]
[368678439,1751292652617,-460.0,0.00019607,2]
[368678440,1751292652627,-460.0,0.00019607,2]
[368678441,1751292652636,-4178.41,0.00019607,2]
[368678442,1751292652645,-348.94455598,0.00019607,2]
[368678443,1751292652655,-460.0,0.00019607,2]
[368678444,1751292652664,-460.0,0.00019607,2]
[368678445,1751292652673,-536.59,0.00019607,2]
[368678446,1751292652682,-507.75,0.00019607,2]
[368678447,1751292652691,-2247.91,0.00019607,2]
[368678448,1751292652701,-460.0,0.00019607,2]
[368678449,1751292652710,-1889.22,0.00019607,2]
[368678450,1751292652719,-460.0,0.00019607,2]
[368678451,1751292652729,-460.0,0.00019607,2]
[368678452,1751292652739,-460.0,0.00019607,2]
[368678453,1751292652749,-460.0,0.00019608,2]
[368678454,1751292652760,-460.0,0.00019608,2]
[368678455,1751292652770,-2144.16,0.00019608,2]
[368678456,1751292652780,-560.83,0.00019608,2]
[368678457,1751292652790,-460.0,0.00019608,2]
[368678458,1751292652799,-494.44,0.00019608,2]
[368678459,1751292652808,-384.74975239,0.00019608,2]
[368678460,1751292652818,-508.1,0.00019608,2]
[368678461,1751292652827,-460.0,0.00019608,2]
[368678462,1751292652837,-460.0,0.00019608,2]
[368678463,1751292652846,-684.32,0.00019608,2]
[368678464,1751292652857,-460.0,0.00019608,2]
[368678465,1751292652866,-460.0,0.00019608,2]
[368678466,1751292652875,-162.44540029,0.00019608,2]
[368678467,1751292652885,-610.8,0.00019608,2]
[368678468,1751292652895,-512.53,0.00019608,2]
[368678469,1751292652904,-309.41540756,0.00019608,2]
[368678470,1751292652913,-1233.39,0.00019608,2]
[368678471,1751292652922,-460.0,0.00019608,2]
[368678472,1751292652933,-478.91,0.00019608,2]
[368678473,1751292652942,-460.0,0.00019608,2]
[368678474,1751292652951,-460.0,0.00019608,2]
[368678475,1751292652961,-4803.33,0.00019608,2]
[368678476,1751292652971,-460.0,0.00019608,2]
[368678477,1751292652980,-460.0,0.00019608,2]
[368678478,1751292652990,-1190.0,0.00019608,2]
[368678479,1751292652999,-460.0,0.00019609,2]
[368678480,1751292653009,-460.0,0.00019609,2]
[368678481,1751292653019,-1099.82,0.00019609,2]
[368678482,1751292653028,-460.0,0.00019609,2]
[368678483,1751292653038,-460.0,0.00019609,2]
[368678484,1751292653048,-460.0,0.00019609,2]
[368678485,1751292653058,-624.33,0.00019609,2]
[368678486,1751292653068,-460.0,0.00019609,2]
[368678487,1751292653078,-460.0,0.00019609,2]
[368678488,1751292653088,-470.3,0.00019609,2]
[368678489,1751292653180,-4816.37,0.00019609,2]
[368678490,1751292653191,-1260.89,0.00019609,2]
[368678491,1751292653200,-485.39,0.00019609,2]
[368678492,1751292653209,-460.0,0.00019609,2]
[368678493,1751292653219,-1107.58437044,0.00019615,2]
[368678494,1751292653228,-1190.0,0.00019636,2]
[368678495,1751292653238,-1190.0,0.00019663,2]
[368678496,1751292653248,-1148.56499215,0.0001967,2]
[368678497,1751292653257,-1190.0,0.00019691,2]
[368678498,1751292653268,-460.0,0.00019708,2]
[368678499,1751292653277,-460.0,0.00019708,2]
[368678500,1751292653286,-460.0,0.00019708,2]
[368678501,1751292653295,-460.0,0.00019708,2]
[368678502,1751292653305,-460.0,0.00019708,2]
[368678503,1751292653314,-460.0,0.00019708,2]
[368678504,1751292653324,-460.0,0.00019708,2]
[368678505,1751292653333,-554.09318642,0.00019708,2]
[368678506,1751292653342,-460.0,0.00019708,2]
[368678507,1751292653353,-508.48,0.00019708,2]
[368678508,1751292653362,-460.0,0.00019708,2]
[368678509,1751292653372,-574.1,0.00019708,2]
[368678510,1751292653381,-460.0,0.00019708,2]
[368678511,1751292653390,-460.0,0.00019708,2]
[368678512,1751292653399,-460.0,0.00019708,2]
[368678513,1751292653408,-399.63,0.00019708,2]
[368678514,1751292653417,-774.04,0.00019708,2]
[368678515,1751292653427,-527.72,0.00019708,2]
[368678516,1751292653439,-460.0,0.00019708,2]
[368678517,1751292653448,-460.0,0.00019708,2]
[368678518,1751292653457,-527.38,0.00019708,2]
[368678519,1751292653466,-460.0,0.00019708,2]
[368678520,1751292653476,-460.0,0.00019708,2]
[368678521,1751292653486,-1190.0,0.00019718,2]
[368678522,1751292653496,-1191.06189686,0.00019725,2]
[368678523,1751292653507,-1190.0,0.00019745,2]
[368678524,1751292653517,-1190.0,0.00019773,2]
[368678525,1751292653526,-1190.0,0.000198,2]
[368678526,1751292653536,-460.0,0.00019808,2]
[368678527,1751292653546,-460.0,0.00019808,2]
[368678528,1751292653555,-460.0,0.00019808,2]
[368678529,1751292653565,-460.0,0.00019808,2]
[368678530,1751292653575,-1125.71,0.00019808,2]
[368678531,1751292653584,-276.76,0.00019808,2]
[368678532,1751292653593,-151.0,0.00019808,2]
[368678533,1751292653604,-151.0,0.00019808,2]
[368678534,1751292653614,-151.0,0.00019808,2]
[368678535,1751292653623,-819.49,0.00019808,2]
[368678536,1751292653633,-213.693847,0.00019808,2]
[368678537,1751292653643,-153.76584,0.00019808,2]
[368678538,1751292653653,-213.693847,0.00019808,2]
[368678539,1751292653664,-151.0,0.00019808,2]
[368678540,1751292653676,-711.35,0.00019808,2]
[368678541,1751292653687,-151.0,0.00019808,2]
[368678542,1751292653699,-151.0,0.00019808,2]
[368678543,1751292653710,-460.0,0.00019808,2]
[368678544,1751292653720,-1987.96,0.00019808,2]
[368678545,1751292653731,-460.0,0.00019808,2]
[368678546,1751292653742,-460.0,0.00019808,2]
[368678547,1751292653751,-460.0,0.00019809,2]
[368678548,1751292653761,-829.15,0.00019809,2]
[368678549,1751292653772,-460.0,0.00019809,2]
[368678550,1751292653782,-414.6814643,0.00019809,2]
[368678551,1751292653792,-535.27,0.00019809,2]
[368678552,1751292653803,-339.98,0.00019809,2]
[368678553,1751292653814,-576.38881809,0.00019809,2]
[368678554,1751292653825,-460.0,0.00019809,2]
[368678555,1751292653835,-313.04376125,0.00019809,2]
[368678556,1751292653845,-460.0,0.00019809,2]
[368678557,1751292653855,-755.667,0.00019815,2]
[368678558,1751292653865,-1190.0,0.00019828,2]
[368678559,1751292653874,-460.0,0.00019853,2]
[368678560,1751292653884,-460.0,0.00019853,2]
[368678561,1751292653894,-1190.0,0.00019855,2]
[368678562,1751292653905,-460.0,0.00019881,2]
[368678563,1751292653914,-460.0,0.00019881,2]
[368678564,1751292653925,-460.0,0.00019881,2]
[368678565,1751292653935,-460.0,0.00019881,2]
[368678566,1751292653944,-359.18944173,0.00019881,2]
[368678567,1751292653953,-3148.61,0.00019881,2]
[368678568,1751292653962,-528.03,0.00019881,2]
[368678569,1751292653972,-833.89,0.00019881,2]
[368678570,1751292653982,-460.0,0.00019881,2]
[368678571,1751292653992,-3121.8,0.00019881,2]
[368678572,1751292654001,-460.0,0.00019881,2]
[368678573,1751292654011,-3574.5,0.00019881,2]
[368678574,1751292654022,-735.98,0.00019881,2]
[368678575,1751292654032,-489.67,0.00019881,2]
[368678576,1751292654041,-499.26,0.00019881,2]
[368678577,1751292654051,-460.0,0.00019881,2]
[368678578,1751292654062,-3308.14,0.00019881,2]
[368678579,1751292654071,-460.0,0.00019881,2]
[368678580,1751292654080,-460.0,0.00019881,2]
[368678581,1751292654089,-4178.41,0.00019881,2]
[368678582,1751292654099,-460.0,0.00019881,2]
[368678583,1751292654108,-460.0,0.00019881,2]
[368678584,1751292654117,-536.59,0.00019881,2]
[368678585,1751292654126,-151.0,0.00019881,2]
[368678586,1751292654136,-507.75,0.00019881,2]
[368678587,1751292654145,-151.0,0.00019881,2]
[368678588,1751292654155,-2247.91,0.00019881,2]
[368678589,1751292654165,-514.92,0.00019881,2]
[368678590,1751292654175,-151.0,0.00019881,2]
[368678591,1751292654184,-1889.22,0.00019881,2]
[368678592,1751292654194,-151.0,0.00019881,2]
[368678593,1751292654203,-460.0,0.00019881,2]
[368678594,1751292654212,-460.0,0.00019881,2]
[368678595,1751292654222,-151.0,0.00019881,2]
[368678596,1751292654231,-151.0,0.00019881,2]
[368678597,1751292654241,-151.0,0.00019881,2]
[368678598,1751292654250,-460.0,0.00019881,2]
[368678599,1751292654260,-151.0,0.00019882,2]
[368678600,1751292654270,-313.33711761,0.00019882,2]
[368678601,1751292654279,-460.0,0.00019882,2]
[368678602,1751292654288,-151.0,0.00019882,2]
[368678603,1751292654297,-2144.16,0.00019882,2]
[368678604,1751292654307,-151.0,0.00019882,2]
[368678605,1751292654317,-560.83,0.00019882,2]
[368678606,1751292654326,-151.0,0.00019882,2]
[368678607,1751292654336,-460.0,0.00019882,2]
[368678608,1751292654345,-494.44,0.00019882,2]
[368678609,1751292654356,-151.0,0.00019882,2]
[368678610,1751292654365,-508.1,0.00019882,2]
[368678611,1751292654375,-460.0,0.00019882,2]
[368678612,1751292654384,-460.0,0.00019882,2]
[368678613,1751292654394,-684.32,0.00019882,2]
[368678614,1751292654403,-460.0,0.00019882,2]
[368678615,1751292654413,-460.0,0.00019882,2]
[368678616,1751292654422,-151.0,0.00019882,2]
[368678617,1751292654435,-610.8,0.00019882,2]
[368678618,1751292654444,-512.53,0.00019882,2]
[368678619,1751292654454,-1233.39,0.00019882,2]
[368678620,1751292654463,-460.0,0.00019882,2]
[368678621,1751292654475,-478.91,0.00019882,2]
[368678622,1751292654484,-460.0,0.00019882,2]
[368678623,1751292654494,-460.0,0.00019882,2]
[368678624,1751292654504,-4803.33,0.00019882,2]
[368678625,1751292654514,-460.0,0.00019882,2]
[368678626,1751292654523,-460.0,0.00019882,2]
[368678627,1751292654533,-1190.0,0.00019882,2]
[368678628,1751292654542,-496.38,0.00019883,2]
[368678629,1751292654551,-460.0,0.00019883,2]
[368678630,1751292654561,-1099.82,0.00019883,2]
[368678631,1751292654570,-463.66,0.00019883,2]
[368678632,1751292654579,-460.0,0.00019883,2]
[368678633,1751292654588,-460.0,0.00019883,2]
[368678634,1751292654598,-624.33,0.00019883,2]
[368678635,1751292654609,-460.0,0.00019883,2]
[368678636,1751292654618,-460.0,0.00019883,2]
[368678637,1751292654627,-470.3,0.00019883,2]
[368678638,1751292654636,-4816.37,0.00019883,2]
[368678639,1751292654645,-1260.89,0.00019883,2]
[368678640,1751292654654,-485.39,0.00019883,2]
[368678641,1751292654664,-460.0,0.00019883,2]
[368678642,1751292654673,-420.0,0.00019892,2]
[368678643,1751292654682,-151.0,0.000199,2]
[368678644,1751292654692,-4761.44927223,0.000199,2]
[368678645,1751292654701,-1190.0,0.0001991,2]
[368678646,1751292654710,-1190.0,0.00019937,2]
[368678647,1751292654720,-1190.0,0.00019965,2]
[368678648,1751292654730,-460.0,0.00019982,2]
[368678649,1751292654739,-460.0,0.00019982,2]
[368678650,1751292654749,-460.0,0.00019982,2]
[368678651,1751292654758,-460.0,0.00019982,2]
[368678652,1751292654767,-460.0,0.00019982,2]
[368678653,1751292654777,-460.0,0.00019982,2]
[368678654,1751292654786,-460.0,0.00019982,2]
[368678655,1751292654795,-151.0,0.00019982,2]
[368678656,1751292654805,-151.0,0.00019982,2]
[368678657,1751292654814,-460.0,0.00019982,2]
[368678658,1751292654907,-508.48,0.00019982,2]
[368678659,1751292654917,-460.0,0.00019982,2]
[368678660,1751292654927,-574.1,0.00019982,2]
[368678661,1751292654937,-151.0,0.00019982,2]
[368678662,1751292654946,-151.0,0.00019982,2]
[368678663,1751292654958,-151.0,0.00019982,2]
[368678664,1751292654967,-151.0,0.00019982,2]
[368678665,1751292654976,-460.0,0.00019982,2]
[368678666,1751292654986,-460.0,0.00019982,2]
[368678667,1751292654996,-460.0,0.00019982,2]
[368678668,1751292655006,-774.04,0.00019982,2]
[368678669,1751292655016,-527.72,0.00019982,2]
[368678670,1751292655025,-460.0,0.00019982,2]
[368678671,1751292655035,-460.0,0.00019982,2]
[368678672,1751292655044,-527.38,0.00019982,2]
[368678673,1751292655053,-460.0,0.00019982,2]
[368678674,1751292655063,-460.0,0.00019982,2]
[368678675,1751292655073,-1614.0,0.00019989,2]
[368678676,1751292655083,-1190.0,0.00019992,2]
[368678677,1751292655093,-5000.0,0.00019996,2]
[368678678,1751292655102,-25000.0,0.00019996,2]
[368678679,1751292655111,-151.0,0.00019996,2]
[368678680,1751292655121,-151.0,0.00019996,2]
[368678681,1751292655130,-4000.0,0.0002,4]
[368678682,1751292655139,-1000.0,0.00020009,5]
[368678683,1751292655149,-1190.0,0.00020019,2]
[368678684,1751292655158,-500.0,0.00020039,2]
[368678685,1751292655169,-1190.0,0.00020047,2]
[368678686,1751292655178,-7694.3676231,0.00020056,2]
[368678687,1751292655187,-4761.44927214,0.00020072,2]
[368678688,1751292655197,-1190.0,0.00020074,2]
[368678689,1751292655207,-460.0,0.00020082,2]
[368678690,1751292655216,-460.0,0.00020082,2]
[368678691,1751292655226,-460.0,0.00020082,2]
[368678692,1751292655236,-460.0,0.00020082,2]
[368678693,1751292655246,-1125.71,0.00020082,2]
[368678694,1751292655256,-819.49,0.00020082,2]
[368678695,1751292655266,-711.35,0.00020082,2]
[368678696,1751292655276,-460.0,0.00020082,2]
[368678697,1751292655286,-1987.96,0.00020082,2]
[368678698,1751292655296,-443.40624203,0.00020082,2]
[368678699,1751292655306,-460.0,0.00020082,2]
[368678700,1751292655316,-265.0,0.00020082,2]
[368678701,1751292655326,-403.956,0.00020083,2]
[368678702,1751292655335,-423.35,0.00020083,2]
[368678703,1751292655345,-518.82,0.00020083,2]
[368678704,1751292655357,-829.15,0.00020083,2]
[368678705,1751292655366,-460.0,0.00020083,2]
[368678706,1751292655376,-580.0,0.00020083,2]
[368678707,1751292655385,-460.0,0.00020083,2]
[368678708,1751292655395,-1190.0,0.00020102,2]
[368678709,1751292655405,-151.0,0.00020127,2]
[368678710,1751292655415,-151.0,0.00020127,2]
[368678711,1751292655424,-460.0,0.00020127,2]
[368678712,1751292655437,-460.0,0.00020127,2]
[368678713,1751292655447,-1190.0,0.00020129,2]
[368678714,1751292655456,-1500.0,0.00020133,2]
[368678715,1751292655466,-242.24216907,0.00020135,2]
[368678716,1751292655477,-1500.0,0.00020141,2]
[368678717,1751292655486,-1000.0,0.00020143,2]
[368678718,1751292655496,-1500.0,0.00020147,2]
[368678719,1751292655507,-460.0,0.00020155,2]
[368678720,1751292655516,-221.29,0.00020155,2]
[368678721,1751292655526,-460.0,0.00020155,2]
[368678722,1751292655535,-460.0,0.00020155,2]
[368678723,1751292655544,-3148.61,0.00020155,2]
[368678724,1751292655554,-833.89,0.00020155,2]
[368678725,1751292655563,-460.0,0.00020155,2]
[368678726,1751292655572,-3121.8,0.00020155,2]
[368678727,1751292655582,-460.0,0.00020155,2]
[368678728,1751292655591,-3574.5,0.00020155,2]
[368678729,1751292655601,-735.98,0.00020155,2]
[368678730,1751292655610,-489.67,0.00020155,2]
[368678731,1751292655620,-499.26,0.00020155,2]
[368678732,1751292655629,-460.0,0.00020155,2]
[368678733,1751292655639,-3308.14,0.00020155,2]
[368678734,1751292655650,-460.0,0.00020155,2]
[368678735,1751292655659,-460.0,0.00020155,2]
[368678736,1751292655668,-4178.41,0.00020155,2]
[368678737,1751292655678,-460.0,0.00020155,2]
[368678738,1751292655687,-460.0,0.00020155,2]
[368678739,1751292655696,-536.59,0.00020155,2]
[368678740,1751292655706,-507.75,0.00020155,2]
[368678741,1751292655715,-2247.91,0.00020155,2]
[368678742,1751292655724,-1889.22,0.00020155,2]
[368678743,1751292655734,-460.0,0.00020155,2]
[368678744,1751292655744,-460.0,0.00020155,2]
[368678745,1751292655753,-460.0,0.00020155,2]
[368678746,1751292655762,-460.0,0.00020156,2]
[368678747,1751292655772,-2144.16,0.00020156,2]
[368678748,1751292655781,-560.83,0.00020156,2]
[368678749,1751292655791,-587.22,0.00020156,2]
[368678750,1751292655799,-494.44,0.00020156,2]
[368678751,1751292655809,-508.1,0.00020156,2]
[368678752,1751292655818,-460.0,0.00020156,2]
[368678753,1751292655827,-684.32,0.00020156,2]
[368678754,1751292655836,-460.0,0.00020156,2]